bitfinex/quotes_BTCUSD_20251215
["timestamp","ask_amount","ask_price","bid_price","bid_amount"]
[1765836682730,0.24448672,86247.0,86244.0,0.00011406]
[1765836682731,0.2318975,86245.0,86244.0,0.00011406]
[1765836682938,0.24275839,86245.0,86244.0,0.00011406]
[1765836683769,0.25275238,86245.0,86244.0,0.00011406]
[1765836683973,0.25275503,86245.0,86244.0,0.00011406]
[1765836684151,0.65978618,86245.0,86244.0,0.00011406]
[1765836684706,0.69102699,86245.0,86244.0,0.00011406]
[1765836684835,2.72002394,86245.0,86244.0,0.00011406]
[1765836685040,2.68128618,86245.0,86244.0,0.00011406]
[1765836685267,2.72394059,86245.0,86244.0,0.00011406]
[1765836685541,2.68428618,86245.0,86244.0,0.00011406]
[1765836685765,2.68328618,86245.0,86244.0,0.00011406]
[1765836686198,2.72494059,86245.0,86244.0,0.00011406]
[1765836686431,2.68328618,86245.0,86244.0,0.00011406]
[1765836686626,2.68128618,86245.0,86244.0,0.00011406]
[1765836686829,2.68328618,86245.0,86244.0,0.00011406]
[1765836687420,2.68428618,86245.0,86244.0,0.00011406]
[1765836688032,2.68328618,86245.0,86244.0,0.00011406]
[1765836688239,2.68528618,86245.0,86244.0,0.00011406]
[1765836696258,2.72526792,86245.0,86244.0,0.00011406]
[1765836697336,2.56895503,86245.0,86244.0,0.00011406]
[1765836697548,2.60021349,86245.0,86244.0,0.00011406]
[1765836697757,2.56895503,86245.0,86244.0,0.00011406]
[1765836697944,2.61060944,86245.0,86244.0,0.00011406]
[1765836700150,2.60021055,86245.0,86244.0,0.00011406]
[1765836700430,2.56895503,86245.0,86244.0,0.00011406]
[1765836700632,2.68528618,86245.0,86244.0,0.00011406]
[1765836700836,2.71654242,86245.0,86244.0,0.00011406]
[1765836700990,2.71654232,86245.0,86244.0,0.00011406]
[1765836702103,2.68528618,86245.0,86244.0,0.00011406]
[1765836704182,2.56895503,86245.0,86244.0,0.00011406]
[1765836704408,2.60021702,86245.0,86244.0,0.00011406]
[1765836705060,2.59821702,86245.0,86244.0,0.00011406]
[1765836705278,2.59621702,86245.0,86244.0,0.00011406]
[1765836705539,2.56595503,86245.0,86244.0,0.00011406]
[1765836705762,2.68228618,86245.0,86244.0,0.00011406]
[1765836706141,2.7135557,86245.0,86244.0,0.00011406]
[1765836706313,2.68228618,86245.0,86244.0,0.00011406]
[1765836706520,2.56595503,86245.0,86244.0,0.00011406]
[1765836706736,0.56595503,86245.0,86244.0,0.00011406]
[1765836707135,0.27525503,86245.0,86244.0,0.00011406]
[1765836707345,0.29357503,86245.0,86244.0,0.11659741]
[1765836707698,0.29357503,86245.0,86244.0,0.00011406]
[1765836708279,0.29257503,86245.0,86244.0,0.00011406]
[1765836709105,0.10923251,86245.0,86244.0,0.00011406]
[1765836713769,0.17846656,86246.0,86244.0,0.00011406]
[1765836713973,0.26676356,86245.0,86244.0,0.00011406]
[1765836716635,0.27826356,86245.0,86244.0,0.00011406]
[1765836719812,0.27826356,86245.0,86244.0,0.11659741]
[1765836719813,0.2433975,86245.0,86244.0,0.11659741]
[1765836722994,0.2433975,86245.0,86244.0,0.00011406]
[1765836725464,0.2433975,86245.0,86244.0,0.11659741]
[1765836726571,0.0115,86245.0,86244.0,0.11659741]
[1765836726816,0.0115,86245.0,86244.0,0.14472741]
[1765836727026,0.0115,86245.0,86244.0,0.18531741]
[1765836727269,0.0115,86245.0,86244.0,0.18693028]
[1765836730200,0.0115,86245.0,86244.0,0.43715047]
[1765836731265,0.0115,86245.0,86244.0,0.43915047]
[1765836731656,0.0115,86245.0,86244.0,0.44215047]
[1765836732127,0.01159299,86259.0,86254.0,0.11648335]
[1765836732340,0.01159326,86257.0,86254.0,0.11648335]
[1765836732525,0.23187013,86256.0,86254.0,0.11648335]
[1765836732731,0.24345886,86257.0,86254.0,0.11648335]
[1765836732930,0.24345875,86257.0,86254.0,0.11648335]
[1765836733336,0.24345875,86257.0,86254.0,0.11748335]
[1765836733517,0.23187061,86255.0,86254.0,0.11648335]
[1765836733718,0.23186935,86256.0,86254.0,0.11648335]
[1765836733965,0.23187061,86255.0,86254.0,0.11848335]
[1765836734596,0.23186935,86256.0,86254.0,0.11748335]
[1765836734802,0.23186935,86256.0,86254.0,0.11648335]
[1765836735001,0.23186935,86256.0,86254.0,0.11748335]
[1765836735759,0.23186935,86256.0,86254.0,0.11848335]
[1765836735952,0.01159326,86257.0,86254.0,0.11848335]
[1765836736301,0.24345932,86257.0,86254.0,0.11748335]
[1765836736622,0.23186834,86256.0,86254.0,0.11848335]
[1765836736754,0.23186834,86256.0,86254.0,0.11648335]
[1765836736959,0.24345932,86257.0,86254.0,0.11848335]
[1765836737577,0.24345932,86257.0,86254.0,0.11748335]
[1765836738002,0.80229326,86260.0,86254.0,0.11909622]
[1765836738239,0.24345002,86260.0,86259.0,0.11648335]
[1765836740453,0.2318602,86259.0,86254.0,0.00161287]
[1765836740668,0.24345319,86259.0,86258.0,0.11647494]
[1765836741223,0.24345319,86259.0,86254.0,0.00161287]
[1765836741224,0.23187061,86255.0,86254.0,0.00161287]
[1765836741452,0.24345849,86257.0,86256.0,0.00999399]
[1765836742851,0.24345849,86257.0,86256.0,0.01099399]
[1765836743850,0.24345849,86257.0,86256.0,0.01199399]
[1765836745237,0.24345849,86257.0,86256.0,0.002]
[1765836748304,0.2318634,86258.0,86256.0,0.002]
[1765836748513,0.01159299,86259.0,86256.0,0.002]
[1765836748680,0.24345501,86259.0,86256.0,0.002]
[1765836748882,0.25018523,86257.0,86256.0,0.002]
[1765836749122,0.2318733,86254.0,86253.0,0.00999399]
[1765836749709,0.2318733,86254.0,86244.0,0.00011406]
[1765836749710,0.0115946,86247.0,86244.0,0.00011406]
[1765836750471,0.2318975,86245.0,86244.0,0.00011406]
[1765836752241,0.2318975,86245.0,86244.0,0.00111406]
[1765836752440,0.2318975,86245.0,86244.0,0.00211406]
[1765836755181,0.26676093,86245.0,86244.0,0.00211406]
[1765836760946,0.38309208,86245.0,86244.0,0.00211406]
[1765836761155,0.39396764,86245.0,86244.0,0.00211406]
[1765836761736,0.27763649,86245.0,86244.0,0.00211406]
[1765836765340,0.26676093,86245.0,86244.0,0.00211406]
[1765836766490,0.27763016,86245.0,86244.0,0.00211406]
[1765836782638,0.28913016,86245.0,86244.0,0.00211406]
[1765836783548,0.05723266,86245.0,86244.0,0.118589]
[1765836784357,0.05723266,86245.0,86244.0,0.00211406]
[1765836784554,0.28913016,86245.0,86244.0,0.00211406]
[1765836784726,0.05723266,86245.0,86244.0,0.00211406]
[1765836785692,0.04636343,86245.0,86244.0,0.187269]
[1765836785895,0.04636343,86245.0,86244.0,0.18888187]
[1765836786103,0.0115,86245.0,86244.0,0.42078206]
[1765836786307,0.0115,86245.0,86244.0,0.18888187]
[1765836786477,0.0115,86245.0,86244.0,0.42078206]
[1765836788568,0.0115,86245.0,86244.0,0.18888187]
[1765836790291,0.0115,86245.0,86244.0,0.42078206]
[1765836790493,0.0115,86245.0,86244.0,0.18888187]
[1765836794974,0.25,86250.0,86244.0,0.18888187]
[1765836794975,0.0115942,86250.0,86248.0,0.00999399]
[1765836795174,0.23188674,86249.0,86248.0,0.00999399]
[1765836795989,0.04645481,86251.0,86248.0,0.00999399]
[1765836796208,0.27833819,86251.0,86248.0,0.00999399]
[1765836796425,0.27833819,86251.0,86248.0,0.01099399]
[1765836796426,0.2783372,86251.0,86248.0,0.01099399]
[1765836796691,0.01159406,86251.0,86248.0,0.01099399]
[1765836796900,0.03486075,86250.0,86248.0,0.01099399]
[1765836797103,0.03486075,86250.0,86248.0,0.00999399]
[1765836797325,0.03486075,86250.0,86248.0,0.01099399]
[1765836797533,0.03486075,86250.0,86248.0,0.01199399]
[1765836798348,0.03486075,86250.0,86249.0,0.04156]
[1765836798569,0.03486075,86250.0,86248.0,0.01099399]
[1765836798976,0.03486075,86250.0,86248.0,0.05355399]
[1765836799225,0.03486075,86250.0,86249.0,0.05811686]
[1765836799415,0.0004,86263.0,86262.0,0.11647494]
[1765836799607,0.0004,86263.0,86262.0,0.18510012]
[1765836799810,0.0004,86263.0,86262.0,0.20347494]
[1765836800092,0.0004,86263.0,86262.0,0.20508781]
[1765836800295,0.0004,86263.0,86262.0,0.46012479]
[1765836800427,0.0004,86263.0,86262.0,0.43693961]
[1765836801306,0.0004,86263.0,86262.0,0.20708781]
[1765836801714,0.0004,86263.0,86262.0,0.23027299]
[1765836801923,0.0004,86263.0,86262.0,0.23227299]
[1765836802136,0.0004,86263.0,86262.0,0.46412479]
[1765836802337,0.0004,86263.0,86262.0,0.44093961]
[1765836810784,0.0004,86263.0,86262.0,0.12047494]
[1765836810985,0.31189657,86263.0,86262.0,0.004]
[1765836811145,0.75378667,86263.0,86262.0,0.004]
[1765836811568,0.59654582,86263.0,86262.0,0.004]
[1765836811782,0.55780806,86263.0,86262.0,0.004]
[1765836811991,0.55780806,86263.0,86262.0,0.002]
[1765836812389,0.55880806,86263.0,86262.0,0.002]
[1765836812607,0.2318975,86245.0,86244.0,0.00011406]
[1765836812951,0.2318975,86245.0,86244.0,0.01843406]
[1765836813911,0.2318975,86245.0,86244.0,0.02043406]
[1765836814331,0.2318975,86245.0,86244.0,0.00211406]
[1765836814544,0.2318975,86245.0,86226.0,0.24354487]
[1765836814545,0.01159958,86210.0,86205.0,0.03885]
[1765836814752,0.70512954,86215.0,86205.0,0.00161287]
[1765836814941,0.2319885,86212.0,86206.0,0.00999399]
[1765836815203,0.23199703,86208.0,86206.0,0.00999399]
[1765836816001,0.23199703,86208.0,86205.0,0.00161287]
[1765836816002,0.23200241,86206.0,86205.0,0.11808781]
[1765836816211,0.01159985,86208.0,86205.0,0.11808781]
[1765836816837,0.01159985,86208.0,86206.0,0.002]
[1765836817272,0.01159985,86208.0,86205.0,0.11808781]
[1765836817489,0.23199972,86207.0,86205.0,0.12008781]
[1765836817918,0.24359909,86208.0,86206.0,0.003]
[1765836818165,0.24359909,86208.0,86205.0,0.12008781]
[1765836818616,0.24359909,86208.0,86205.0,0.12308781]
[1765836818843,0.01159971,86209.0,86205.0,0.12008781]
[1765836819081,0.01159971,86209.0,86206.0,0.003]
[1765836819307,0.24359532,86209.0,86206.0,0.003]
[1765836819515,0.01159985,86208.0,86206.0,0.03885]
[1765836820119,0.01159971,86209.0,86206.0,0.04085]
[1765836820396,0.24359499,86209.0,86206.0,0.04085]
[1765836820554,0.24359499,86209.0,86206.0,0.002]
[1765836820901,0.23199795,86208.0,86206.0,0.002]
[1765836821301,0.23199795,86208.0,86206.0,0.005]
[1765836821731,0.23199795,86208.0,86206.0,0.003]
[1765836821960,0.23199795,86208.0,86206.0,0.005]
[1765836822172,0.23199795,86208.0,86206.0,0.002]
[1765836822373,0.23199795,86208.0,86206.0,0.005]
[1765836822575,0.23199795,86208.0,86206.0,0.003]
[1765836822824,0.23199795,86208.0,86206.0,0.005]
[1765836824112,0.3062368,86208.0,86206.0,0.005]
[1765836824261,0.23199795,86208.0,86206.0,0.005]
[1765836825319,0.2319824,86214.0,86212.0,0.11647494]
[1765836825464,0.01159931,86212.0,86207.0,0.0583]
[1765836825648,0.24358725,86212.0,86211.0,0.11647494]
[1765836826161,0.03487692,86215.0,86211.0,0.02834287]
[1765836826538,0.48196474,86220.0,86214.0,0.02673]
[1765836826739,0.23196474,86220.0,86219.0,0.11647494]
[1765836827935,0.23196474,86220.0,86219.0,0.11747494]
[1765836828289,0.23196474,86220.0,86219.0,0.001]
[1765836834769,0.23196474,86220.0,86219.0,0.00111418]
[1765836838032,0.33171568,86220.0,86219.0,0.00111418]
[1765836839164,0.23196474,86220.0,86219.0,0.00111418]
[1765836842239,0.24281668,86220.0,86219.0,0.00111418]
[1765836842435,0.53351668,86220.0,86219.0,0.00111418]
[1765836843376,0.55854109,86220.0,86219.0,0.00111418]
[1765836847436,0.55856977,86220.0,86219.0,0.00111418]
[1765836848022,0.6215857,86220.0,86219.0,0.00111418]
[1765836848227,0.55856977,86220.0,86219.0,0.00111418]
[1765836850102,0.57868977,86220.0,86219.0,0.00111418]
[1765836864413,0.34395644,86220.0,86219.0,0.00111418]
[1765836864886,0.31893203,86220.0,86219.0,0.00111418]
[1765836865271,0.55089677,86220.0,86219.0,0.00111418]
[1765836865593,0.57592118,86220.0,86219.0,0.00111418]
[1765836874292,0.55089677,86220.0,86219.0,0.00111418]
[1765836878356,0.26296536,86220.0,86219.0,0.00111418]
[1765836886149,2.59231778,86220.0,86219.0,0.00111418]
[1765836886484,2.61063778,86220.0,86219.0,0.00111418]
[1765836891243,2.64195329,86220.0,86219.0,0.00111418]
[1765836896209,2.61063778,86220.0,86219.0,0.00111418]
[1765836896388,2.57198536,86220.0,86219.0,0.00111418]
[1765836896586,0.57198536,86220.0,86219.0,0.00111418]
[1765836896989,0.5719795,86220.0,86219.0,0.00111418]
[1765836898148,0.5536595,86220.0,86219.0,0.00111418]
[1765836900257,0.55365911,86220.0,86219.0,0.00111418]
[1765836901338,2.55365911,86220.0,86219.0,0.00111418]
[1765836901516,2.63518692,86220.0,86219.0,4.18e-06]
[1765836901720,2.67219267,86220.0,86219.0,4.18e-06]
[1765836902358,2.73474389,86220.0,86219.0,4.18e-06]
[1765836902720,2.73574389,86220.0,86219.0,4.18e-06]
[1765836902842,2.85207504,86220.0,86219.0,4.18e-06]
[1765836903038,2.85107504,86220.0,86219.0,4.18e-06]
[1765836903239,2.82681699,86220.0,86219.0,4.18e-06]
[1765836903471,2.82981699,86220.0,86219.0,4.18e-06]
[1765836904137,2.83281699,86220.0,86219.0,4.18e-06]
[1765836904338,2.85782447,86220.0,86219.0,4.18e-06]
[1765836910983,3.10192447,86220.0,86219.0,4.18e-06]
[1765836913182,3.12024447,86220.0,86219.0,4.18e-06]
[1765836915799,3.12021633,86220.0,86219.0,4.18e-06]
[1765836916806,3.00388518,86220.0,86219.0,4.18e-06]
[1765836917680,3.00392518,86220.0,86219.0,4.18e-06]
[1765836923073,2.91561362,86220.0,86219.0,4.18e-06]
[1765836924921,2.87574022,86220.0,86219.0,4.18e-06]
[1765836925537,2.91739353,86220.0,86219.0,4.18e-06]
[1765836925741,2.99207137,86220.0,86219.0,4.18e-06]
[1765836926601,3.0337324,86220.0,86219.0,4.18e-06]
[1765836928345,2.99207137,86220.0,86219.0,4.18e-06]
[1765836931281,2.97371137,86220.0,86219.0,4.18e-06]
[1765836931591,2.99207137,86220.0,86219.0,4.18e-06]
[1765836933725,3.03194477,86220.0,86219.0,4.18e-06]
[1765836933920,2.91561362,86220.0,86219.0,4.18e-06]
[1765836934522,2.92711362,86220.0,86219.0,4.18e-06]
[1765836940946,2.91561362,86220.0,86219.0,4.18e-06]
[1765836941149,2.91561362,86220.0,86189.0,0.00893418]
[1765836941150,0.23204548,86190.0,86189.0,0.00893418]
[1765836941304,0.2320446,86191.0,86190.0,0.11647494]
[1765836941464,0.2320446,86191.0,86190.0,0.11808781]
[1765836942519,0.2320446,86191.0,86190.0,0.11908781]
[1765836942698,0.2320446,86191.0,86190.0,0.12008781]
[1765836943731,0.24364703,86192.0,86190.0,0.12008781]
[1765836943931,0.01160187,86193.0,86190.0,0.12008781]
[1765836944515,0.01160173,86194.0,86190.0,0.11908781]
[1765836944706,0.01160187,86193.0,86190.0,0.11908781]
[1765836945202,0.24363706,86194.0,86190.0,0.00261287]
[1765836945410,0.24363995,86193.0,86190.0,0.00361287]
[1765836945827,0.24363995,86193.0,86190.0,0.00261287]
[1765836946227,0.01160187,86193.0,86190.0,0.00261287]
[1765836946523,0.24364045,86193.0,86190.0,0.00261287]
[1765836946853,0.01160187,86193.0,86190.0,0.00261287]
[1765836947059,0.24364142,86193.0,86190.0,0.00361287]
[1765836947263,0.23204009,86192.0,86190.0,0.00361287]
[1765836947609,0.24364396,86193.0,86192.0,0.11647494]
[1765836947963,0.23204009,86192.0,86191.0,0.00161287]
[1765836949764,0.24364396,86193.0,86191.0,0.00161287]
[1765836949932,0.24364396,86193.0,86191.0,0.00261287]
[1765836950125,0.24363906,86194.0,86193.0,0.11647494]
[1765836950388,0.24363906,86194.0,86193.0,0.00161287]
[1765836950567,0.24363836,86195.0,86194.0,0.11647494]
[1765836950752,0.24363836,86195.0,86194.0,0.11808781]
[1765836951279,0.25451024,86195.0,86194.0,0.11808781]
[1765836951483,0.25451024,86195.0,86194.0,0.00161287]
[1765836951834,0.24363836,86195.0,86194.0,0.00261287]
[1765836952270,0.01087294,86195.0,86194.0,0.00261287]
[1765836952481,0.23203202,86195.0,86194.0,0.00261287]
[1765836953331,0.23203088,86196.0,86194.0,0.00261287]
[1765836953668,0.23203202,86195.0,86194.0,0.00261287]
[1765836954072,0.23203202,86195.0,86194.0,0.00161287]
[1765836954483,0.23203202,86195.0,86194.0,0.00205786]
[1765836954690,0.23203202,86195.0,86194.0,0.00105786]
[1765836955180,0.23203202,86195.0,86194.0,0.00205786]
[1765836955748,0.24290703,86195.0,86194.0,0.00205786]
[1765836955869,0.23203202,86195.0,86194.0,0.00205786]
[1765836956071,0.24290703,86195.0,86194.0,0.00205786]
[1765836961494,0.24290703,86195.0,86194.0,0.001]
[1765836961839,0.24346204,86195.0,86194.0,0.001]
[1765836969512,0.01143002,86195.0,86194.0,0.001]
[1765836970063,0.24346204,86195.0,86194.0,0.001]
[1765836977508,0.24346038,86195.0,86194.0,0.001]
[1765836977940,0.01087335,86195.0,86194.0,0.06943786]
[1765836978147,0.01087335,86195.0,86194.0,0.00205786]
[1765836978148,0.23203202,86195.0,86194.0,0.00205786]
[1765836978358,0.34836317,86195.0,86194.0,0.00205786]
[1765836978557,0.24290528,86195.0,86194.0,0.00205786]
[1765836979251,0.24290528,86195.0,86194.0,0.00305786]
[1765836979550,0.24290528,86195.0,86194.0,0.00205786]
[1765836979749,0.24290528,86195.0,86194.0,0.00405786]
[1765836987002,0.24290528,86195.0,86194.0,0.003]
[1765836987003,0.6194729,86195.0,86194.0,0.003]
[1765836987890,0.6194729,86195.0,86194.0,0.002]
[1765836988108,0.6194729,86195.0,86194.0,0.003]
[1765836988667,2.6194729,86195.0,86194.0,0.002]
[1765836988848,2.6377929,86195.0,86194.0,0.002]
[1765836989086,2.64244525,86195.0,86194.0,0.001]
[1765836989223,2.69682702,86195.0,86194.0,0.001]
[1765836989666,0.52274548,86190.0,86189.0,0.00011418]
[1765836989835,2.55921501,86190.0,86189.0,0.00011418]
[1765836991423,2.54834175,86190.0,86189.0,0.00011418]
[1765836991671,2.55920504,86190.0,86189.0,0.00011418]
[1765836993157,0.55920504,86190.0,86189.0,0.00011418]
[1765836997319,0.59409559,86190.0,86189.0,0.00111418]
[1765836998525,0.59409351,86190.0,86189.0,0.00111418]
[1765837005297,0.27835225,86190.0,86189.0,0.00111418]
[1765837005624,0.26749104,86190.0,86189.0,0.00111418]
[1765837008515,0.26693603,86190.0,86189.0,0.00111418]
[1765837009666,0.011602,86192.0,86189.0,0.07028204]
[1765837009910,0.24353822,86193.0,86191.0,0.02654]
[1765837010105,0.011602,86192.0,86190.0,0.04157]
[1765837010274,0.01160146,86196.0,86192.0,0.02654]
[1765837010493,0.24363644,86194.0,86192.0,0.00105786]
[1765837010830,0.24363644,86194.0,86193.0,0.17897494]
[1765837010974,0.24363644,86194.0,86193.0,0.20551494]
[1765837011173,0.24363644,86194.0,86193.0,0.09009786]
[1765837012155,0.24363644,86194.0,86193.0,0.09209786]
[1765837012910,0.01160146,86196.0,86193.0,0.09209786]
[1765837013210,0.23203308,86195.0,86194.0,0.06811]
[1765837013414,0.23203308,86195.0,86194.0,0.06916786]
[1765837014629,0.01160106,86199.0,86194.0,0.06916786]
[1765837014835,0.01160106,86199.0,86195.0,0.02654]
[1765837015279,0.03488349,86202.0,86198.0,0.02654]
[1765837015463,0.01159985,86208.0,86198.0,0.02654]
[1765837015464,0.01159971,86209.0,86207.0,0.11647494]
[1765837015674,0.23199703,86208.0,86207.0,0.13740494]
[1765837015895,0.23199703,86208.0,86207.0,0.0625]
[1765837017448,0.23199703,86208.0,86207.0,0.0645]
[1765837017648,0.23199703,86208.0,86207.0,0.0627]
[1765837017842,0.23199703,86208.0,86207.0,0.0647]
[1765837019324,0.2816305,86212.0,86207.0,0.09229786]
[1765837019468,0.23196873,86219.0,86207.0,0.09229786]
[1765837019469,0.0115981,86221.0,86211.0,0.04747]
[1765837019669,0.01159783,86223.0,86219.0,0.14301494]
[1765837019670,0.03487522,86222.0,86219.0,0.14301494]
[1765837019871,0.03487522,86222.0,86221.0,0.05746399]
[1765837020101,0.25,86230.0,86221.0,0.04852786]
[1765837020313,0.03486796,86241.0,86237.0,0.01159595]
[1765837020517,0.5,86250.0,86243.0,0.11647494]
[1765837020810,0.7434793,86250.0,86243.0,0.14418698]
[1765837020991,0.01159433,86249.0,86243.0,0.18575698]
[1765837021353,0.24348237,86249.0,86244.0,0.04157]
[1765837021626,0.23189511,86246.0,86244.0,0.04157]
[1765837021829,0.23189511,86246.0,86245.0,0.02093]
[1765837022131,0.23189511,86246.0,86245.0,0.04747]
[1765837022421,0.23189238,86247.0,86245.0,0.08719786]
[1765837022626,0.23189238,86247.0,86246.0,0.02558]
[1765837023026,0.23189238,86247.0,86246.0,0.06425]
[1765837024074,0.23189238,86247.0,86246.0,0.06725]
[1765837024548,0.23189212,86247.0,86246.0,0.06725]
[1765837024924,0.23189212,86247.0,86246.0,0.003]
[1765837025126,0.25876212,86247.0,86246.0,0.003]
[1765837025941,0.23189212,86247.0,86246.0,0.003]
[1765837026110,0.23189212,86247.0,86246.0,0.001]
[1765837026310,0.23189212,86247.0,86246.0,0.002]
[1765837026513,0.23189212,86247.0,86246.0,0.001]
[1765837026947,0.23189212,86247.0,86246.0,0.002]
[1765837031853,0.01918478,86248.0,86246.0,0.002]
[1765837032285,0.25685212,86247.0,86246.0,0.002]
[1765837032519,0.67307462,86247.0,86246.0,0.002]
[1765837032730,0.52260019,86244.0,86243.0,0.00011418]
[1765837032889,2.5503052,86244.0,86243.0,0.00011418]
[1765837033085,2.6387586,86244.0,86243.0,0.00011418]
[1765837033513,2.69395046,86244.0,86243.0,0.00011418]
[1765837033917,2.69395046,86244.0,86243.0,0.00111418]
[1765837034094,2.69395046,86244.0,86217.0,0.01047418]
[1765837034095,0.23197012,86218.0,86217.0,0.01047418]
[1765837034316,0.23197012,86218.0,86217.0,0.01058842]
[1765837035683,0.23196765,86219.0,86217.0,0.01058842]
[1765837035834,0.23196765,86219.0,86217.0,0.01258842]
[1765837036573,0.23196765,86219.0,86217.0,0.01058842]
[1765837036772,0.24356558,86220.0,86217.0,0.01158842]
[1765837036973,0.24356558,86220.0,86217.0,0.01464628]
[1765837037346,0.23196826,86219.0,86217.0,0.01364628]
[1765837037568,0.24356558,86220.0,86217.0,0.01464628]
[1765837037983,0.24356558,86220.0,86217.0,0.05231628]
[1765837038415,0.24356558,86220.0,86217.0,0.05331628]
[1765837038627,0.23196849,86219.0,86217.0,0.05331628]
[1765837038983,0.23196849,86219.0,86217.0,0.05131628]
[1765837039383,0.24356558,86220.0,86217.0,0.05231628]
[1765837039596,0.24356558,86220.0,86217.0,0.05031628]
[1765837039990,0.24356558,86220.0,86217.0,0.05231628]
[1765837040316,0.23196755,86219.0,86217.0,0.05131628]
[1765837040476,0.24356558,86220.0,86217.0,0.05231628]
[1765837040676,0.23196194,86222.0,86219.0,0.02558]
[1765837040677,0.01159796,86222.0,86219.0,0.02558]
[1765837040877,0.23196474,86220.0,86219.0,0.00105786]
[1765837042443,0.23196474,86220.0,86219.0,0.00205786]
[1765837043449,0.23196474,86220.0,86219.0,0.00305786]
[1765837043796,0.24355732,86222.0,86219.0,0.00205786]
[1765837044001,0.23196474,86220.0,86219.0,0.00205786]
[1765837044256,0.23196474,86220.0,86219.0,0.00305786]
[1765837045253,0.23196474,86220.0,86219.0,0.00205786]
[1765837045586,0.23196474,86220.0,86219.0,0.00105786]
[1765837045803,0.23197012,86218.0,86217.0,0.00011424]
[1765837046004,0.27236012,86218.0,86217.0,0.00011424]
[1765837047126,0.27236012,86218.0,86217.0,0.00111424]
[1765837048087,0.04039,86218.0,86217.0,0.00111424]
[1765837048588,0.27236012,86218.0,86217.0,0.00111424]
[1765837050671,0.24556012,86218.0,86217.0,0.00111424]
[1765837052512,0.23196743,86219.0,86217.0,0.00111424]
[1765837052690,0.23197012,86218.0,86217.0,0.00111424]
[1765837053420,0.23197012,86218.0,86217.0,0.00011424]
[1765837055193,0.23197012,86218.0,86217.0,0.00111424]
[1765837057718,0.23196743,86219.0,86217.0,0.00111424]
[1765837057863,0.23197012,86218.0,86217.0,0.00111424]
[1765837058462,0.23197012,86218.0,86217.0,0.00011424]
[1765837059494,0.26009012,86218.0,86217.0,0.00011424]
[1765837060180,0.26009012,86218.0,86217.0,0.00111424]
[1765837061617,0.23197012,86218.0,86217.0,0.00111424]
[1765837062200,0.27014172,86218.0,86217.0,0.00111424]
[1765837062445,0.24285172,86218.0,86217.0,0.00111424]
[1765837066290,0.29525172,86218.0,86217.0,0.00111424]
[1765837066682,0.26905172,86218.0,86217.0,0.00111424]
[1765837067186,0.29498172,86218.0,86217.0,0.00111424]
[1765837067491,0.29498394,86218.0,86217.0,0.00111424]
[1765837068592,0.26905394,86218.0,86217.0,0.00111424]
[1765837069183,0.28356012,86218.0,86217.0,0.00111424]
[1765837070804,0.29444596,86218.0,86217.0,0.00111424]
[1765837072533,2.60346596,86218.0,86217.0,0.00111424]
[1765837072742,2.62854705,86218.0,86217.0,0.00111424]
[1765837074242,2.62854705,86218.0,86217.0,0.00011424]
[1765837074519,2.63054705,86218.0,86217.0,0.00011424]
[1765837075652,2.63254705,86218.0,86217.0,0.00011424]
[1765837081575,2.66244936,86218.0,86217.0,0.00011424]
[1765837082712,2.63254705,86218.0,86217.0,0.00011424]
[1765837083918,2.63251662,86218.0,86217.0,0.00011424]
[1765837084306,0.01160065,86202.0,86197.0,0.06599]
[1765837084509,0.01160065,86202.0,86197.0,0.0671008]
[1765837084710,0.24361176,86203.0,86197.0,0.0671008]
[1765837085120,0.01160065,86202.0,86197.0,0.0671008]
[1765837085553,0.01302,86198.0,86197.0,0.0021108]
[1765837085729,0.01160065,86202.0,86197.0,0.0021108]
[1765837085939,0.24361425,86202.0,86197.0,0.0708708]
[1765837086180,0.01160079,86201.0,86197.0,0.0708708]
[1765837086386,0.24361398,86202.0,86197.0,0.0708708]
[1765837086977,0.01160065,86202.0,86197.0,0.0708708]
[1765837087345,0.01160065,86202.0,86197.0,0.0718708]
[1765837087766,0.01160092,86200.0,86197.0,0.0718708]
[1765837087968,0.01160092,86200.0,86197.0,0.0708708]
[1765837088140,0.01160025,86205.0,86199.0,0.04316]
[1765837088341,0.24360547,86205.0,86204.0,0.04316]
[1765837088863,0.23201048,86203.0,86202.0,0.03337]
[1765837091397,0.23201048,86203.0,86202.0,0.03437]
[1765837092096,0.23201048,86203.0,86202.0,0.03537]
[1765837092460,0.23200851,86204.0,86202.0,0.03537]
[1765837092657,0.23200984,86204.0,86202.0,0.03537]
[1765837092884,0.23201048,86203.0,86202.0,0.03537]
[1765837093854,0.23201048,86203.0,86202.0,0.03437]
[1765837095045,0.23201048,86203.0,86202.0,0.03537]
[1765837095543,0.23201048,86203.0,86202.0,0.14834786]
[1765837095748,0.23201048,86203.0,86202.0,0.07958786]
[1765837097163,0.01159958,86210.0,86206.0,0.00999399]
[1765837097358,0.01159958,86210.0,86207.0,0.10213]
[1765837097359,0.30229971,86209.0,86207.0,0.10213]
[1765837097713,0.23199703,86208.0,86207.0,0.10213]
[1765837097905,0.23199703,86208.0,86207.0,0.03337]
[1765837098307,0.01159958,86210.0,86207.0,0.14634786]
[1765837098506,0.53429197,86210.0,86209.0,0.04316]
[1765837098706,0.30229958,86210.0,86209.0,0.04316]
[1765837099105,0.30158478,86210.0,86209.0,0.04316]
[1765837100181,0.01088478,86210.0,86209.0,0.04421786]
[1765837100483,0.02248409,86212.0,86209.0,0.11297786]
[1765837101151,0.02248409,86212.0,86209.0,0.04421786]
[1765837101359,0.02248409,86212.0,86210.0,0.06876]
[1765837101583,0.02348409,86212.0,86210.0,0.06876]
[1765837101909,0.001,86212.0,86210.0,0.06981786]
[1765837102443,0.001,86212.0,86199.0,0.26194036]
[1765837102444,0.23202394,86198.0,86197.0,5.294e-05]
[1765837102597,0.26615394,86198.0,86197.0,5.294e-05]
[1765837102816,0.29232895,86198.0,86197.0,5.294e-05]
[1765837105979,0.27014895,86198.0,86197.0,5.294e-05]
[1765837107371,0.24532895,86198.0,86197.0,5.294e-05]
[1765837108880,0.2436198,86200.0,86197.0,0.1464008]
[1765837108881,0.01160092,86200.0,86197.0,0.1464008]
[1765837109028,0.23202394,86198.0,86197.0,0.1032408]
[1765837110289,0.23202238,86199.0,86197.0,0.1032408]
[1765837110493,0.24361972,86200.0,86197.0,0.1032408]
[1765837110703,0.23202345,86199.0,86197.0,0.1032408]
[1765837111076,0.24362021,86200.0,86197.0,0.0344808]
[1765837111276,0.01160079,86201.0,86198.0,0.06355]
[1765837111831,0.2436201,86200.0,86197.0,0.0344808]
[1765837112166,0.01160092,86200.0,86197.0,0.0344808]
[1765837112499,0.24362175,86200.0,86198.0,0.06439]
[1765837113270,0.23202125,86199.0,86198.0,0.06439]
[1765837113910,0.23202125,86199.0,86198.0,0.06539]
[1765837114109,0.23202125,86199.0,86198.0,0.06439]
[1765837114474,0.23202125,86199.0,86198.0,0.06539]
[1765837114813,0.01160092,86200.0,86198.0,0.06539]
[1765837115109,0.24361981,86200.0,86198.0,0.06539]